[Event "Titled Tuesday Blitz May 16 Early 2023"]
[White "Lazavik, Denis"]
[Black "Bacrot, Etienne"]
[WhiteFideId "13515110"]
[BlackFideId "605506"]
[WhiteElo "2560"]
[BlackElo "2672"]
[Result "0-1"]
[Round "05"]
[TimeControl "180+2"]
[Date "2023.05.16"]
[WhiteClock "0:00:03"]
[BlackClock "0:00:07"]

1. d4 {[%clk 0:03:00]}  Nf6 {[%clk 0:03:00]} 2. c4 {[%clk 0:03:01]}  c6 {[%clk 0:03:00]} 3. Nf3 {[%clk 0:03:00]}  d5 {[%clk 0:03:01]} 4. Qc2 {[%clk 0:03:01]}  g6 {[%clk 0:03:01]} 5. cxd5 {[%clk 0:03:01]}  cxd5 {[%clk 0:03:01]} 6. Bf4 {[%clk 0:03:01]}  Nc6 {[%clk 0:03:01]} 7. Nc3 {[%clk 0:03:02]}  Bg7 {[%clk 0:03:01]} 8. e3 {[%clk 0:03:02]}  O-O {[%clk 0:03:01]} 9. h3 {[%clk 0:03:02]}  Bf5 {[%clk 0:03:01]} 10. Qb3 {[%clk 0:03:01]}  Na5 {[%clk 0:03:01]} 11. Qb4 {[%clk 0:02:57]}  Rc8 {[%clk 0:02:49]} 12. Be2 {[%clk 0:02:55]}  a6 {[%clk 0:02:50]} 13. O-O {[%clk 0:02:48]}  Re8 {[%clk 0:02:39]} 14. Ne5 {[%clk 0:02:35]}  Bf8 {[%clk 0:01:59]} 15. Rfc1 {[%clk 0:02:01]}  b5 {[%clk 0:01:41]} 16. Nd1 {[%clk 0:01:58]}  Nc4 {[%clk 0:01:38]} 17. Qe1 {[%clk 0:01:50]}  Nd7 {[%clk 0:01:30]} 18. Nd3 {[%clk 0:01:41]}  Qb6 {[%clk 0:01:17]} 19. b3 {[%clk 0:01:25]}  Na3 {[%clk 0:00:58]} 20. Qd2 {[%clk 0:01:22]}  a5 {[%clk 0:00:43]} 21. Rxc8 {[%clk 0:00:55]}  Rxc8 {[%clk 0:00:43]} 22. Rc1 {[%clk 0:00:56]}  Rxc1 {[%clk 0:00:43]} 23. Qxc1 {[%clk 0:00:57]}  b4 {[%clk 0:00:43]} 24. N1b2 {[%clk 0:00:53]}  Qb7 {[%clk 0:00:35]} 25. g4 {[%clk 0:00:50]}  Bxd3 {[%clk 0:00:34]} 26. Bxd3 {[%clk 0:00:49]}  Nb5 {[%clk 0:00:24]} 27. Na4 {[%clk 0:00:37]}  e6 {[%clk 0:00:24]} 28. Kg2 {[%clk 0:00:31]}  Nd6 {[%clk 0:00:24]} 29. Qc2 {[%clk 0:00:28]}  Be7 {[%clk 0:00:19]} 30. Nc5 {[%clk 0:00:24]}  Qc6 {[%clk 0:00:16]} 31. Na4 {[%clk 0:00:14]}  Qxc2 {[%clk 0:00:15]} 32. Bxc2 {[%clk 0:00:15]}  f6 {[%clk 0:00:13]} 33. Kf1 {[%clk 0:00:15]}  e5 {[%clk 0:00:13]} 34. dxe5 {[%clk 0:00:14]}  fxe5 {[%clk 0:00:14]} 35. Bg3 {[%clk 0:00:14]}  Kf7 {[%clk 0:00:14]} 36. f3 {[%clk 0:00:15]}  Ke6 {[%clk 0:00:15]} 37. Ke2 {[%clk 0:00:14]}  Nb5 {[%clk 0:00:15]} 38. Bd3 {[%clk 0:00:13]}  Nc7 {[%clk 0:00:14]} 39. Kd2 {[%clk 0:00:09]}  Bd6 {[%clk 0:00:15]} 40. Be2 {[%clk 0:00:09]}  Ne8 {[%clk 0:00:13]} 41. Be1 {[%clk 0:00:05]}  Nc7 {[%clk 0:00:13]} 42. Kc2 {[%clk 0:00:06]}  Ke7 {[%clk 0:00:12]} 43. Bd2 {[%clk 0:00:06]}  Ke6 {[%clk 0:00:12]} 44. e4 {[%clk 0:00:06]}  dxe4 {[%clk 0:00:12]} 45. fxe4 {[%clk 0:00:07]}  Be7 {[%clk 0:00:12]} 46. Bc4+ {[%clk 0:00:07]}  Kd6 {[%clk 0:00:12]} 47. Be3 {[%clk 0:00:07]}  Ne6 {[%clk 0:00:13]} 48. Bxe6 {[%clk 0:00:07]}  Kxe6 {[%clk 0:00:13]} 49. Kd3 {[%clk 0:00:07]}  Kd6 {[%clk 0:00:12]} 50. Nb2 {[%clk 0:00:07]}  Kc6 {[%clk 0:00:11]} 51. Nc4 {[%clk 0:00:08]}  Bd8 {[%clk 0:00:12]} 52. Bf2 {[%clk 0:00:07]}  Bc7 {[%clk 0:00:12]} 53. Be3 {[%clk 0:00:07]}  Bd8 {[%clk 0:00:13]} 54. Nd2 {[%clk 0:00:07]}  Bc7 {[%clk 0:00:13]} 55. Nf3 {[%clk 0:00:07]}  Bd8 {[%clk 0:00:13]} 56. Ke2 {[%clk 0:00:06]}  Kb5 {[%clk 0:00:09]} 57. Nd2 {[%clk 0:00:06]}  a4 {[%clk 0:00:08]} 58. Nc4 {[%clk 0:00:05]}  axb3 {[%clk 0:00:08]} 59. axb3 {[%clk 0:00:06]}  Be7 {[%clk 0:00:07]} 60. Kd3 {[%clk 0:00:06]}  Bc5 {[%clk 0:00:07]} 61. Bd2 {[%clk 0:00:06]}  Bd4 {[%clk 0:00:07]} 62. Nd6+ {[%clk 0:00:05]}  Kc6 {[%clk 0:00:07]} 63. Nf7 {[%clk 0:00:05]}  Kb5 {[%clk 0:00:06]} 64. Nd6+ {[%clk 0:00:05]}  Kc6 {[%clk 0:00:06]} 65. Bxb4 {[%clk 0:00:05]}  Bc5 {[%clk 0:00:05]} 66. Nf7 {[%clk 0:00:02]}  Bxb4 {[%clk 0:00:05]} 67. Ng5 {[%clk 0:00:03]}  Be7 {[%clk 0:00:03]} 68. Nf3 {[%clk 0:00:03]}  g5 {[%clk 0:00:03]} 69. Kc4 {[%clk 0:00:03]}  Nb6+ {[%clk 0:00:03]} 70. Kd3 {[%clk 0:00:03]}  Bf6 {[%clk 0:00:04]} 71. Kc3 {[%clk 0:00:03]}  Kc5 {[%clk 0:00:04]} 72. b4+ {[%clk 0:00:03]}  Kb5 {[%clk 0:00:04]} 73. Ne1 {[%clk 0:00:03]}  Nc8 {[%clk 0:00:02]} 74. Nd3 {[%clk 0:00:04]}  Nd6 {[%clk 0:00:02]} 75. Nc5 {[%clk 0:00:04]}  Kc6 {[%clk 0:00:02]} 76. Kd3 {[%clk 0:00:04]}  Bd8 {[%clk 0:00:03]} 77. Ne6 {[%clk 0:00:04]}  Be7 {[%clk 0:00:03]} 78. Nc5 {[%clk 0:00:05]}  Nb5 {[%clk 0:00:03]} 79. Ne6 {[%clk 0:00:05]}  h6 {[%clk 0:00:03]} 80. Kc4 {[%clk 0:00:05]}  Nd6+ {[%clk 0:00:04]} 81. Kd3 {[%clk 0:00:06]}  Nb5 {[%clk 0:00:04]} 82. Kc4 {[%clk 0:00:06]}  Nd4 {[%clk 0:00:04]} 83. Ng7 {[%clk 0:00:05]}  Bf6 {[%clk 0:00:04]} 84. b5+ {[%clk 0:00:04]}  Nxb5 {[%clk 0:00:03]} 85. Nh5 {[%clk 0:00:03]}  Nd6+ {[%clk 0:00:04]} 86. Kd3 {[%clk 0:00:03]}  Bh8 {[%clk 0:00:04]} 87. Ng3 {[%clk 0:00:04]}  Kd7 {[%clk 0:00:05]} 88. Ne2 {[%clk 0:00:05]}  Ke6 {[%clk 0:00:05]} 89. Nc3 {[%clk 0:00:05]}  Nb7 {[%clk 0:00:05]} 90. Nd5 {[%clk 0:00:06]}  Nc5+ {[%clk 0:00:06]} 91. Ke3 {[%clk 0:00:07]}  Bf6 {[%clk 0:00:06]} 92. Kf3 {[%clk 0:00:07]}  Bd8 {[%clk 0:00:06]} 93. Ne3 {[%clk 0:00:08]}  Nb3 {[%clk 0:00:05]} 94. Nf5 {[%clk 0:00:08]}  Bb6 {[%clk 0:00:04]} 95. Nxh6 {[%clk 0:00:09]}  Nd2+ {[%clk 0:00:05]} 96. Kg2 {[%clk 0:00:08]}  Nxe4 {[%clk 0:00:06]} 97. Nf5 {[%clk 0:00:09]}  Nd6 {[%clk 0:00:05]} 98. Ng7+ {[%clk 0:00:08]}  Kf6 {[%clk 0:00:05]} 99. Nh5+ {[%clk 0:00:09]}  Kg6 {[%clk 0:00:06]} 100. Ng3 {[%clk 0:00:10]}  e4 {[%clk 0:00:06]} 101. Ne2 {[%clk 0:00:10]}  Nb5 {[%clk 0:00:06]} 102. Kg3 {[%clk 0:00:11]}  Be3 {[%clk 0:00:05]} 103. h4 {[%clk 0:00:11]}  Nd4 {[%clk 0:00:04]} 104. Nc3 {[%clk 0:00:11]}  Bf4+ {[%clk 0:00:04]} 105. Kh3 {[%clk 0:00:09]}  e3 {[%clk 0:00:05]} 106. hxg5 {[%clk 0:00:09]}  Kxg5 {[%clk 0:00:05]} 107. Kg2 {[%clk 0:00:05]}  Kxg4 {[%clk 0:00:06]} 108. Ne4 {[%clk 0:00:03]}  e2 {[%clk 0:00:05]} 109. Nf2+ {[%clk 0:00:04]}  Kf5 {[%clk 0:00:05]} 110. Nd3 {[%clk 0:00:05]}  Be3 {[%clk 0:00:05]} 111. Ne1 {[%clk 0:00:04]}  Ke4 {[%clk 0:00:05]} 112. Kg3 {[%clk 0:00:05]}  Bd2 {[%clk 0:00:04]} 113. Ng2 {[%clk 0:00:05]}  Be3 {[%clk 0:00:05]} 114. Ne1 {[%clk 0:00:06]}  Bg5 {[%clk 0:00:03]} 115. Kg2 {[%clk 0:00:06]}  Ke3 {[%clk 0:00:03]} 116. Kg3 {[%clk 0:00:06]}  Kd2 {[%clk 0:00:03]} 117. Ng2 {[%clk 0:00:07]}  Be7 {[%clk 0:00:04]} 118. Kg4 {[%clk 0:00:07]}  Bd6 {[%clk 0:00:04]} 119. Kh3 {[%clk 0:00:06]}  Kd3 {[%clk 0:00:04]} 120. Kg4 {[%clk 0:00:06]}  Ke4 {[%clk 0:00:05]} 121. Ne1 {[%clk 0:00:06]}  Ke3 {[%clk 0:00:05]} 122. Kh3 {[%clk 0:00:05]}  Kf2 {[%clk 0:00:05]} 123. Nd3+ {[%clk 0:00:05]}  Ke3 {[%clk 0:00:05]} 124. Ne1 {[%clk 0:00:06]}  Bb4 {[%clk 0:00:06]} 125. Ng2+ {[%clk 0:00:05]}  Kf3 {[%clk 0:00:06]} 126. Nh4+ {[%clk 0:00:05]}  Kf2 {[%clk 0:00:07]} 127. Ng2 {[%clk 0:00:06]}  Bd6 {[%clk 0:00:07]} 128. Nf4 {[%clk 0:00:03]}  Bxf4 {[%clk 0:00:07]} 0-1


[Site "https://www.chess.com"]

[Event "Titled Tuesday Blitz May 16 Early 2023"]
[White "Maghsoodloo, Parham"]
[Black "Sviridov, Valery"]
[WhiteFideId "12539929"]
[BlackFideId "4120680"]
[WhiteElo "2655"]
[BlackElo "2457"]
[Result "1-0"]
[Round "05"]
[TimeControl "180+2"]
[Date "2023.05.16"]
[WhiteClock "0:01:49"]
[BlackClock "0:01:09"]

1. e4 {[%clk 0:03:00]}  Nf6 {[%clk 0:02:55]} 2. e5 {[%clk 0:02:58]}  Nd5 {[%clk 0:02:56]} 3. d4 {[%clk 0:02:58]}  d6 {[%clk 0:02:55]} 4. Nf3 {[%clk 0:02:59]}  dxe5 {[%clk 0:02:55]} 5. Nxe5 {[%clk 0:02:59]}  c6 {[%clk 0:02:56]} 6. Be2 {[%clk 0:02:57]}  Nd7 {[%clk 0:02:57]} 7. Nd3 {[%clk 0:02:57]}  N7f6 {[%clk 0:02:57]} 8. O-O {[%clk 0:02:57]}  Bf5 {[%clk 0:02:58]} 9. Nc5 {[%clk 0:02:53]}  Qc7 {[%clk 0:02:54]} 10. c4 {[%clk 0:02:52]}  Nb6 {[%clk 0:02:54]} 11. Be3 {[%clk 0:02:45]}  e6 {[%clk 0:02:54]} 12. Nd2 {[%clk 0:02:45]}  Be7 {[%clk 0:02:53]} 13. b4 {[%clk 0:02:44]}  O-O {[%clk 0:02:52]} 14. Ndb3 {[%clk 0:02:41]}  Rad8 {[%clk 0:02:50]} 15. Qc1 {[%clk 0:02:41]}  Nbd7 {[%clk 0:02:42]} 16. Bf4 {[%clk 0:02:41]}  Qc8 {[%clk 0:02:43]} 17. h3 {[%clk 0:02:34]}  Rfe8 {[%clk 0:02:42]} 18. Qe3 {[%clk 0:02:33]}  Bf8 {[%clk 0:02:41]} 19. Nxd7 {[%clk 0:02:32]}  Nxd7 {[%clk 0:02:40]} 20. Qc3 {[%clk 0:02:28]}  h6 {[%clk 0:02:36]} 21. a4 {[%clk 0:02:28]}  Nf6 {[%clk 0:02:23]} 22. Bf3 {[%clk 0:02:26]}  Be4 {[%clk 0:02:23]} 23. Be2 {[%clk 0:02:16]}  Bg6 {[%clk 0:02:21]} 24. Rfd1 {[%clk 0:02:14]}  Bd6 {[%clk 0:02:18]} 25. Bxd6 {[%clk 0:02:14]}  Ne4 {[%clk 0:02:19]} 26. Qe3 {[%clk 0:02:12]}  Nxd6 {[%clk 0:02:19]} 27. Rac1 {[%clk 0:02:12]}  Qc7 {[%clk 0:02:18]} 28. b5 {[%clk 0:02:11]}  Nf5 {[%clk 0:02:15]} 29. Qc3 {[%clk 0:02:12]}  Qf4 {[%clk 0:02:13]} 30. g3 {[%clk 0:02:08]}  Qc7 {[%clk 0:02:12]} 31. Bf3 {[%clk 0:02:08]}  cxb5 {[%clk 0:01:57]} 32. axb5 {[%clk 0:02:06]}  Re7 {[%clk 0:01:42]} 33. c5 {[%clk 0:02:06]}  Red7 {[%clk 0:01:38]} 34. c6 {[%clk 0:02:04]}  bxc6 {[%clk 0:01:38]} 35. bxc6 {[%clk 0:02:05]}  Rd6 {[%clk 0:01:38]} 36. Bg2 {[%clk 0:02:02]}  Ne7 {[%clk 0:01:36]} 37. Qa5 {[%clk 0:02:01]}  Rc8 {[%clk 0:01:36]} 38. Rc5 {[%clk 0:02:00]}  Qb6 {[%clk 0:01:32]} 39. Qc3 {[%clk 0:01:56]}  Rc7 {[%clk 0:01:26]} 40. Na5 {[%clk 0:01:54]}  Nd5 {[%clk 0:01:15]} 41. Qe1 {[%clk 0:01:54]}  Rdxc6 {[%clk 0:01:11]} 42. Nxc6 {[%clk 0:01:53]}  Rxc6 {[%clk 0:01:12]} 43. Bxd5 {[%clk 0:01:50]}  exd5 {[%clk 0:01:09]} 44. Qe8+ {[%clk 0:01:49]} 1-0


[Site "https://www.chess.com"]

[Event "Titled Tuesday Blitz May 16 Early 2023"]
[White "Ibarra Jerez, Jose Carlos"]
[Black "Averjanov, Alexey"]
[WhiteFideId "2226332"]
[BlackFideId "14109867"]
[WhiteElo "2638"]
[BlackElo "2805"]
[Result "1-0"]
[Round "05"]
[TimeControl "180+2"]
[Date "2023.05.16"]
[WhiteClock "0:00:05"]
[BlackClock "0:00:02"]

1. e4 {[%clk 0:02:59]}  c6 {[%clk 0:02:59]} 2. Nf3 {[%clk 0:02:58]}  d5 {[%clk 0:03:00]} 3. d3 {[%clk 0:02:58]}  Qc7 {[%clk 0:03:00]} 4. exd5 {[%clk 0:02:57]}  cxd5 {[%clk 0:03:00]} 5. c4 {[%clk 0:02:58]}  Nf6 {[%clk 0:02:58]} 6. Nc3 {[%clk 0:02:58]}  e6 {[%clk 0:02:50]} 7. a3 {[%clk 0:02:58]}  a6 {[%clk 0:02:47]} 8. Qe2 {[%clk 0:02:57]}  Be7 {[%clk 0:02:44]} 9. g3 {[%clk 0:02:57]}  O-O {[%clk 0:02:36]} 10. Bg2 {[%clk 0:02:56]}  Nc6 {[%clk 0:02:33]} 11. O-O {[%clk 0:02:54]}  Rd8 {[%clk 0:02:30]} 12. Bf4 {[%clk 0:02:52]}  Bd6 {[%clk 0:02:29]} 13. Bg5 {[%clk 0:02:52]}  Be7 {[%clk 0:02:29]} 14. Rac1 {[%clk 0:02:50]}  dxc4 {[%clk 0:02:15]} 15. dxc4 {[%clk 0:02:49]}  Bd7 {[%clk 0:01:54]} 16. b4 {[%clk 0:02:44]}  Be8 {[%clk 0:01:49]} 17. c5 {[%clk 0:02:42]}  b6 {[%clk 0:01:39]} 18. Bf4 {[%clk 0:02:36]}  Qa7 {[%clk 0:01:32]} 19. cxb6 {[%clk 0:02:33]}  Qxb6 {[%clk 0:01:32]} 20. Be3 {[%clk 0:02:33]}  Qb8 {[%clk 0:01:27]} 21. Rfe1 {[%clk 0:02:16]}  Nd5 {[%clk 0:01:08]} 22. Nxd5 {[%clk 0:02:12]}  exd5 {[%clk 0:01:09]} 23. Nd4 {[%clk 0:01:52]}  Nxd4 {[%clk 0:00:56]} 24. Bxd4 {[%clk 0:01:53]}  Bf8 {[%clk 0:00:55]} 25. Bc5 {[%clk 0:01:38]}  Bb5 {[%clk 0:00:50]} 26. Qd2 {[%clk 0:01:35]}  Bc4 {[%clk 0:00:47]} 27. Bxf8 {[%clk 0:01:32]}  Kxf8 {[%clk 0:00:45]} 28. Red1 {[%clk 0:01:20]}  Qb5 {[%clk 0:00:43]} 29. Qd4 {[%clk 0:01:03]}  a5 {[%clk 0:00:35]} 30. bxa5 {[%clk 0:00:52]}  Qxa5 {[%clk 0:00:36]} 31. Rc3 {[%clk 0:00:50]}  Rac8 {[%clk 0:00:32]} 32. Re3 {[%clk 0:00:47]}  Re8 {[%clk 0:00:25]} 33. Rc3 {[%clk 0:00:28]}  Qc5 {[%clk 0:00:25]} 34. Qf4 {[%clk 0:00:22]}  Kg8 {[%clk 0:00:23]} 35. Bxd5 {[%clk 0:00:16]}  Qxd5 {[%clk 0:00:19]} 36. Rxd5 {[%clk 0:00:16]}  Bxd5 {[%clk 0:00:20]} 37. Rxc8 {[%clk 0:00:11]}  Rxc8 {[%clk 0:00:21]} 38. h4 {[%clk 0:00:09]}  Ra8 {[%clk 0:00:17]} 39. Qb4 {[%clk 0:00:09]}  h5 {[%clk 0:00:15]} 40. f4 {[%clk 0:00:09]}  g6 {[%clk 0:00:14]} 41. a4 {[%clk 0:00:09]}  Rc8 {[%clk 0:00:11]} 42. a5 {[%clk 0:00:08]}  Rc1+ {[%clk 0:00:09]} 43. Kf2 {[%clk 0:00:09]}  Rc2+ {[%clk 0:00:09]} 44. Ke3 {[%clk 0:00:09]}  Rg2 {[%clk 0:00:07]} 45. Kd4 {[%clk 0:00:09]}  Be6 {[%clk 0:00:06]} 46. Qb8+ {[%clk 0:00:06]}  Kg7 {[%clk 0:00:06]} 47. Qe5+ {[%clk 0:00:06]}  Kh7 {[%clk 0:00:06]} 48. Qe3 {[%clk 0:00:06]}  Ra2 {[%clk 0:00:05]} 49. Qc3 {[%clk 0:00:06]}  Ra4+ {[%clk 0:00:05]} 50. Ke5 {[%clk 0:00:06]}  Kg7 {[%clk 0:00:03]} 51. Kd6+ {[%clk 0:00:06]}  Kh7 {[%clk 0:00:04]} 52. Ke7 {[%clk 0:00:07]}  Kg8 {[%clk 0:00:03]} 53. Qc7 {[%clk 0:00:04]}  Kg7 {[%clk 0:00:03]} 54. Qe5+ {[%clk 0:00:04]}  Kg8 {[%clk 0:00:03]} 55. Qb8+ {[%clk 0:00:04]}  Kg7 {[%clk 0:00:04]} 56. Qf8+ {[%clk 0:00:04]}  Kh7 {[%clk 0:00:03]} 57. Kf6 {[%clk 0:00:05]}  Rxa5 {[%clk 0:00:02]} 58. Qg7# {[%clk 0:00:05]} 1-0


[Site "https://www.chess.com"]

[Event "Titled Tuesday Blitz May 16 Early 2023"]
[White "Swiercz, Dariusz"]
[Black "Karthik Rajaa"]
[WhiteFideId "1126881"]
[BlackFideId "25035215"]
[WhiteElo "2620"]
[BlackElo "2215"]
[Result "1-0"]
[Round "05"]
[TimeControl "180+2"]
[Date "2023.05.16"]
[WhiteClock "0:00:24"]
[BlackClock "0:00:01"]

1. Nf3 {[%clk 0:02:20]}  Nf6 {[%clk 0:02:58]} 2. d4 {[%clk 0:02:16]}  g6 {[%clk 0:02:57]} 3. Bf4 {[%clk 0:02:16]}  Bg7 {[%clk 0:02:56]} 4. e3 {[%clk 0:02:17]}  d6 {[%clk 0:02:55]} 5. h3 {[%clk 0:02:17]}  O-O {[%clk 0:02:54]} 6. c3 {[%clk 0:02:15]}  Nc6 {[%clk 0:02:54]} 7. Nbd2 {[%clk 0:02:15]}  Nd7 {[%clk 0:02:53]} 8. Bh2 {[%clk 0:02:16]}  e5 {[%clk 0:02:52]} 9. Bb5 {[%clk 0:02:16]}  Ncb8 {[%clk 0:02:46]} 10. O-O {[%clk 0:02:16]}  a6 {[%clk 0:02:45]} 11. Ba4 {[%clk 0:02:16]}  Qe7 {[%clk 0:02:40]} 12. b4 {[%clk 0:02:03]}  b5 {[%clk 0:02:36]} 13. Bb3 {[%clk 0:02:02]}  a5 {[%clk 0:02:36]} 14. a3 {[%clk 0:01:54]}  Bb7 {[%clk 0:02:30]} 15. Qc2 {[%clk 0:01:41]}  c5 {[%clk 0:02:13]} 16. bxc5 {[%clk 0:01:37]}  dxc5 {[%clk 0:02:12]} 17. a4 {[%clk 0:01:31]}  cxd4 {[%clk 0:01:45]} 18. exd4 {[%clk 0:01:22]}  exd4 {[%clk 0:01:11]} 19. Rfe1 {[%clk 0:01:16]}  Qd8 {[%clk 0:01:10]} 20. cxd4 {[%clk 0:01:11]}  Nc6 {[%clk 0:00:33]} 21. Bd6 {[%clk 0:01:07]}  Nb4 {[%clk 0:00:31]} 22. Bxb4 {[%clk 0:00:47]}  axb4 {[%clk 0:00:32]} 23. axb5 {[%clk 0:00:48]}  Nb6 {[%clk 0:00:23]} 24. Qc5 {[%clk 0:00:42]}  Nd5 {[%clk 0:00:15]} 25. Ne5 {[%clk 0:00:31]}  Qb6 {[%clk 0:00:06]} 26. Rxa8 {[%clk 0:00:24]}  Rxa8 {[%clk 0:00:04]} 27. Bxd5 {[%clk 0:00:24]}  Qxc5 {[%clk 0:00:04]} 28. Bxf7+ {[%clk 0:00:25]}  Kf8 {[%clk 0:00:02]} 29. dxc5 {[%clk 0:00:25]}  Bxe5 {[%clk 0:00:03]} 30. Rxe5 {[%clk 0:00:24]}  Kxf7 {[%clk 0:00:02]} 31. c6 {[%clk 0:00:25]}  Ra1+ {[%clk 0:00:02]} 32. Kh2 {[%clk 0:00:25]}  Bc8 {[%clk 0:00:01]} 33. b6 {[%clk 0:00:24]} 1-0


[Site "https://www.chess.com"]

[Event "Titled Tuesday Blitz May 16 Early 2023"]
[White "Yeletsky, Ivan"]
[Black "Halkias, Stelios"]
[WhiteFideId "24180327"]
[BlackFideId "4201809"]
[WhiteElo "2380"]
[BlackElo "2451"]
[Result "1-0"]
[Round "05"]
[TimeControl "180+2"]
[Date "2023.05.16"]
[WhiteClock "0:00:10"]
[BlackClock "0:00:09"]

1. d4 {[%clk 0:03:00]}  Nf6 {[%clk 0:02:54]} 2. c4 {[%clk 0:03:00]}  e6 {[%clk 0:02:53]} 3. Nc3 {[%clk 0:03:00]}  d5 {[%clk 0:02:52]} 4. cxd5 {[%clk 0:03:00]}  exd5 {[%clk 0:02:53]} 5. Bf4 {[%clk 0:03:00]}  c6 {[%clk 0:02:52]} 6. e3 {[%clk 0:03:00]}  Bd6 {[%clk 0:02:52]} 7. Bxd6 {[%clk 0:02:57]}  Qxd6 {[%clk 0:02:52]} 8. Bd3 {[%clk 0:02:58]}  O-O {[%clk 0:02:52]} 9. Nge2 {[%clk 0:02:57]}  Re8 {[%clk 0:02:52]} 10. O-O {[%clk 0:02:52]}  Nbd7 {[%clk 0:02:52]} 11. Qc2 {[%clk 0:02:41]}  Nf8 {[%clk 0:02:50]} 12. Rae1 {[%clk 0:02:41]}  Ng6 {[%clk 0:02:50]} 13. Ng3 {[%clk 0:02:33]}  Ng4 {[%clk 0:02:42]} 14. Qd2 {[%clk 0:02:02]}  Bd7 {[%clk 0:02:39]} 15. f3 {[%clk 0:01:58]}  Nf6 {[%clk 0:02:35]} 16. Bb1 {[%clk 0:01:54]}  c5 {[%clk 0:02:27]} 17. Kh1 {[%clk 0:01:47]}  Rad8 {[%clk 0:02:25]} 18. Nge2 {[%clk 0:01:43]}  b6 {[%clk 0:02:15]} 19. g4 {[%clk 0:01:43]}  h6 {[%clk 0:02:12]} 20. Ng3 {[%clk 0:01:41]}  Bc8 {[%clk 0:01:51]} 21. Nf5 {[%clk 0:01:30]}  Bxf5 {[%clk 0:01:47]} 22. gxf5 {[%clk 0:01:31]}  Nf8 {[%clk 0:01:47]} 23. Rg1 {[%clk 0:01:30]}  N8d7 {[%clk 0:01:25]} 24. Nb5 {[%clk 0:01:21]}  Qc6 {[%clk 0:01:19]} 25. a4 {[%clk 0:00:50]}  a6 {[%clk 0:01:14]} 26. Nc3 {[%clk 0:00:51]}  Kh8 {[%clk 0:01:12]} 27. Re2 {[%clk 0:00:47]}  Re7 {[%clk 0:01:08]} 28. Reg2 {[%clk 0:00:47]}  Rg8 {[%clk 0:01:08]} 29. Bd3 {[%clk 0:00:43]}  c4 {[%clk 0:00:59]} 30. Bb1 {[%clk 0:00:41]}  b5 {[%clk 0:00:59]} 31. axb5 {[%clk 0:00:42]}  axb5 {[%clk 0:00:59]} 32. Ne2 {[%clk 0:00:31]}  Nh5 {[%clk 0:00:54]} 33. e4 {[%clk 0:00:29]}  dxe4 {[%clk 0:00:40]} 34. fxe4 {[%clk 0:00:30]}  Qd6 {[%clk 0:00:33]} 35. Qe3 {[%clk 0:00:26]}  Qb4 {[%clk 0:00:27]} 36. e5 {[%clk 0:00:18]}  Qb3 {[%clk 0:00:21]} 37. Qxh6+ {[%clk 0:00:09]}  gxh6 {[%clk 0:00:17]} 38. Rxg8+ {[%clk 0:00:10]}  Kh7 {[%clk 0:00:16]} 39. f6+ {[%clk 0:00:11]}  Qd3 {[%clk 0:00:09]} 40. fxe7 {[%clk 0:00:10]} 1-0


[Site "https://www.chess.com"]

[Event "Titled Tuesday Blitz May 16 Early 2023"]
[White "Mendez Fortes, Eduardo Jesus"]
[Black "Bortnyk, Olexandr"]
[WhiteFideId "3502376"]
[BlackFideId "14120828"]
[WhiteElo "2307"]
[BlackElo "2734"]
[Result "0-1"]
[Round "05"]
[TimeControl "180+2"]
[Date "2023.05.16"]
[WhiteClock "0:00:12"]
[BlackClock "0:00:32"]

1. e4 {[%clk 0:02:57]}  Nf6 {[%clk 0:02:59]} 2. e5 {[%clk 0:02:57]}  Nd5 {[%clk 0:02:59]} 3. d4 {[%clk 0:02:58]}  d6 {[%clk 0:03:00]} 4. Nf3 {[%clk 0:02:58]}  dxe5 {[%clk 0:03:00]} 5. Nxe5 {[%clk 0:02:59]}  c6 {[%clk 0:03:00]} 6. Bc4 {[%clk 0:02:59]}  Nd7 {[%clk 0:02:59]} 7. Nd3 {[%clk 0:02:48]}  N7f6 {[%clk 0:02:58]} 8. c3 {[%clk 0:02:47]}  Bf5 {[%clk 0:02:56]} 9. O-O {[%clk 0:02:46]}  e6 {[%clk 0:02:57]} 10. Ne5 {[%clk 0:02:43]}  Bd6 {[%clk 0:02:54]} 11. Nd2 {[%clk 0:02:43]}  O-O {[%clk 0:02:50]} 12. h3 {[%clk 0:02:42]}  Qc7 {[%clk 0:02:48]} 13. Ndf3 {[%clk 0:02:35]}  c5 {[%clk 0:02:48]} 14. Bb3 {[%clk 0:02:06]}  cxd4 {[%clk 0:02:45]} 15. Qxd4 {[%clk 0:02:06]}  Rfd8 {[%clk 0:02:35]} 16. Nc4 {[%clk 0:01:57]}  Nf4 {[%clk 0:02:22]} 17. Qe3 {[%clk 0:01:28]}  N6d5 {[%clk 0:02:21]} 18. Qe1 {[%clk 0:01:20]}  Bd3 {[%clk 0:01:54]} 19. Nxd6 {[%clk 0:01:19]}  Qxd6 {[%clk 0:01:55]} 20. c4 {[%clk 0:01:04]}  Nf6 {[%clk 0:00:50]} 21. c5 {[%clk 0:01:04]}  Qc7 {[%clk 0:00:48]} 22. Qe5 {[%clk 0:00:17]}  Qxe5 {[%clk 0:00:33]} 23. Nxe5 {[%clk 0:00:18]}  Bxf1 {[%clk 0:00:33]} 24. Bxf4 {[%clk 0:00:17]}  Bb5 {[%clk 0:00:34]} 25. a4 {[%clk 0:00:16]}  Be8 {[%clk 0:00:32]} 26. Be3 {[%clk 0:00:15]}  Nd5 {[%clk 0:00:31]} 27. Bxd5 {[%clk 0:00:15]}  Rxd5 {[%clk 0:00:32]} 28. b4 {[%clk 0:00:12]}  Rxe5 {[%clk 0:00:32]} 0-1


[Site "https://www.chess.com"]